Workbook

Sheet Menu
D3: WATER
D4: SubMenu | J4: =[1]Menu!$I$4 -> SA RANDS
J5: =[1]Menu!$I$5 -> 2011

Sheet Summary Instructions
C3: WATER - SUMMARY INSTRUCTIONS
D5: Capture anticipated and current Consumption Level Data for Tariff Consumer Groups on this screen.
C8: Any cell with this background colour is a DATA INPUT cell.
C10: Data Required
C11: Consumer Group Name - | D11: EG: Industrial, Domestic
C12: Consumption Types - | D12: EG: Domestic Consumption Type 1
D13: Domestic Consumption Type 2
C14: Consumption Levels - | D14: EG: Consumption 7KL to 15KL
D15: Consumption 16KL to 30KL | F15: Municipal specific DATA INPUT
C16: KL Water Demand - | D16: Estimated Demand in KL for the upcoming year for each Consumption Level.
C17: KL Water Consumption - | D17: Actual Water Consumption in KL for the last year.
C18: Current Actual Tariff - | D18: Tariff charged in the last financial year for each consumption level.
D21: Capture the anticipated and current Number of Users for Tariff Consumer Groups on this workscreen.
C23: Any cell with this background colour is a DATA INPUT cell.
C25: Data Required
C26: Consumer Group Name - | D26: EG: Industrial, Domestic
C27: Consumption Types - | D27: EG: Availablility Fee for Vacant Stands
D28: Basic Fees
C29: No. of Stands - | D29: Anticipated number of Stands for the upcoming year. | F29: Municipal specific DATA INPUT
C30: No. of Stands - | D30: Actual number of Stands for the last year.
C31: Current Actual Tariff - | D31: Tariff charged for the last financial year for each consumption type
D35: Capture the costs for the budget vote on this screen as well as the % allocated to Variable Costs
C39: Any cell with this background colour is a DATA INPUT cell.
C41: Data Required
C42: Costs | D42: EG: Bulk Purchases:
D43: Employee Related Costs:
C44: Cost Detail | D44: Bulk Purchases
D45: Basic Salaries | F45: Municipal specific DATA INPUT
D46: Social Contributions
C47: Share of Varible Costs | D47: Enter the % of the cost assigned to Variable Costs.
C48: A summary of Fixed and Variable costs is displayed at the top of this screen.
D50: The Primary baseline is calculated and then displayed on this screen.
C53: Tariff per KL Water Consuption | D53: Total Variable Costs
D54: Total Kl Water Demand
C57: Fixed Tariff for Water Supply | D57: Total Fixed Facility Costs
D58: Total Number of Users
D60: The Adjusted Primary Baseline ONLY applies to South Africa. The Primary Baseline is adjusted here to remove Free Basic Services from the Tariff calculation.
D64: Input data for strategic decisions on this screen.
D65: Input data can be in the form of a number or a % change.
C68: Any cell with this background colour is an optional DATA INPUT cell.
D72: The revised tariff takes into account input from Strategic Decisions and revises the Tariff accordingly
D77: This screen compares the Current Actual Tariff and Revenue to the Revised Tariff and Revenue, for either Fixed or Variable Tariff. To see the Summary of both Tariff Comparisons, click this button
C79: % CHANGE | D79: Use the %Change column to increase or decrease the Revised Tariff. As you enter the % change the Tariff and Rrevenue will change to reflect your input.
C81: Current Actual - Revised | D81: This column displays the difference betweenTariffs together with a colour indicator.
C82: TARIFF
C84: PROFIT\LOSS | D84: This column displays the difference between Revenues together with a colour indicator.
C85: REVENUE

Sheet Data Capture Demand
C3: =Menu!D3&" - DATA CAPTURE: DEMAND PER YEAR" -> WATER - DATA CAPTURE: DEMAND PER YEAR
C5: FUTURE DEMAND | G5: HISTORICAL DEMAND
C7: ="Financial Year:"&" "&Menu!$J$5&"\"&Menu!$J$5+1 -> Financial Year: 2011\2012 | G7: =Menu!$J$5-1&"\"&Menu!$J$5 -> 2010\2011
C8: CONSUMER | D8: CONSUMPTION LEVEL | E8: KL WATER DEMAND | G8: KL WATER CONSUMPTION | H8: CURRENT ACTUAL TARIFF per KL
C9: DOMESTIC (LOW INCOME)
C10: Domestic (Free Basic Water) Consumption | D10: Consumption 0KL to 6KL | E10: 490000 | G10: 450000 | H10: =H14 -> 5
C11: Consumption Total | E11: =SUM(E6:E10) -> 490000 | G11: =SUM(G10) -> 450000
C13: DOMESTIC
C14: Consumption 7KL to 15KL | D14: Consumption 7KL to 15KL | E14: 450000 | G14: 400000 | H14: 5
C15: Consumption 16KL to 30KL | D15: Consumption 16KL to 30KL | E15: 350000 | G15: 350000 | H15: 8
C16: Domestic Consumption Type 3 | D16: Consumption 31KL to 40KL | E16: 175000 | G16: 200000 | H16: 15
C17: Domestic Consumption Type 4 | D17: Consumption above 40KL | E17: 0 | G17: 0 | H17: 0
C18: Domestic Consumption Type 5 | E18: 0 | G18: 0 | H18: 0
C19: Domestic Consumption Type 6 | E19: 0 | G19: 0 | H19: 0
C20: Consumption Total | E20: =SUM(E14:E19) -> 975000 | G20: =SUM(G14:G19) -> 950000
C22: INDUSTRIAL
C23: Industrial Consumption Type 1 | D23: Consumption 0KL to 1,000KL | E23: 250000 | G23: 250000 | H23: 7
C24: Industrial Consumption Type 2 | D24: Consumption 1,001KL to 5,000KL | E24: 120000 | G24: 150000 | H24: 10
C25: Industrial Consumption Type 3 | D25: Consumption 5,001KL to 100,000KL | E25: 0 | G25: 0 | H25: 0
C26: Industrial Consumption Type 4 | D26: Consumption 100,001KL to 150,000KL | E26: 0 | G26: 0 | H26: 0
C27: Industrial Consumption Type 5 | D27: Consumption 150,001KL to 300,000KL | E27: 0 | G27: 0 | H27: 0
C28: Industrial Consumption Type 6 | D28: Consumption 300,001KL to 600,000KL | E28: 0 | G28: 0 | H28: 0
C29: Industrial Consumption Type 7 | D29: Consumption above 600,000KL | E29: 0 | G29: 0 | H29: 0
C30: Industrial Consumption Type 8 | E30: 0 | G30: 0 | H30: 0
C31: Industrial Consumption Type 9 | E31: 0 | G31: 0 | H31: 0
C32: Consumption Total | E32: =SUM(E23:E31) -> 370000 | G32: =SUM(G23:G31) -> 400000
C34: COMMERCIAL
C35: Commercial Consumption Type 1 | D35: Consumption 0KL to 30KL | E35: 150000 | G35: 150000 | H35: 8
C36: Commercial Consumption Type 2 | D36: Consumption 31KL to 40KL | E36: 120000 | G36: 125000 | H36: 15
C37: Commercial Consumption Type 3 | D37: Consumption above 40KL | E37: 0 | G37: 0 | H37: 0
C38: Commercial Consumption Type 4 | E38: 0 | G38: 0 | H38: 0
C39: Commercial Consumption Type 5 | E39: 0 | G39: 0 | H39: 0
C40: Consumption Total | E40: =SUM(E35:E39) -> 270000 | G40: =SUM(G35:G39) -> 275000
C42: INSTITUTIONAL
C43: Municipal Purposes | E43: 17000 | G43: 16000 | H43: 5
C44: Sports Clubs and Schools Type 1 | D44: Consumption 1KL to 500KL | E44: 0 | G44: 0 | H44: 0
C45: Sports Clubs and Schools Type 2 | D45: Consumption above 501KL | E45: 0 | G45: 0 | H45: 0
C46: Other | E46: 0 | G46: 0 | H46: 0
C47: Other | E47: 0 | G47: 0 | H47: 0
C48: Other | E48: 0 | G48: 0 | H48: 0
C49: Other | E49: 0 | G49: 0 | H49: 0
C50: Other | E50: 0 | G50: 0 | H50: 0
C51: Other | E51: 0 | G51: 0 | H51: 0
C52: Other | E52: 0 | G52: 0 | H52: 0
C53: Consumption Total | E53: =SUM(E43:E52) -> 17000 | G53: =SUM(G43:G52) -> 16000
C55: TOTAL KL WATER DEMAND | E55: =SUM(E11+E20+E32+E40+E53) -> 2122000 | G55: =SUM(G11+G20+G32+G40+G53) -> 2091000

Sheet Data Capture Users
C3: =Menu!D3&" - DATA CAPTURE: USERS PER YEAR" -> WATER - DATA CAPTURE: USERS PER YEAR
C5: FUTURE NUMBER OF USERS | F5: HISTORICAL USERS
C7: ="Financial Year:"&" "&Menu!$J$5&"\"&Menu!$J$5+1 -> Financial Year: 2011\2012 | F7: =Menu!$J$5-1&"\"&Menu!$J$5 -> 2010\2011
C8: CONSUMER | D8: NO OF STANDS | F8: NO OF STANDS | G8: CURRENT ACTUAL TARIFF per Stand per Year
C9: DOMESTIC (LOW INCOME)
C10: Domestic (Free Basic Water) Consumers | D10: 2200 | F10: 2000 | G10: =G15 -> 480
C11: Stand Total | D11: =SUM(D10) -> 2200 | F11: =SUM(F10) -> 2000
C13: DOMESTIC
C14: Availablility Fees for Vacant Stands | D14: 900 | F14: 1000 | G14: 480
C15: Basic Fees from Number of Domestic Consumers | D15: 10100 | F15: 10000 | G15: 480
D16: 0 | F16: 0 | G16: 0
C17: Stand Total | D17: =SUM(D14:D16) -> 11000 | F17: =SUM(F14:F16) -> 11000
C19: INDUSTRIAL
C20: Availablility Fees for Vacant Stands | D20: 0 | F20: 0 | G20: 0
C21: Basic Fees | D21: 0 | F21: 0 | G21: 0
C22: Stand Total | D22: =SUM(D20:D21) -> 0 | F22: =SUM(F20:F21) -> 0
C24: COMMERCIAL
C25: Availablility Fees for Vacant Stands | D25: 0 | F25: 0 | G25: 0
C26: Basic Fees | D26: 0 | F26: 0 | G26: 0
D27: 0 | F27: 0 | G27: 0
C28: Stand Total | D28: =SUM(D25:D27) -> 0 | F28: =SUM(F25:F27) -> 0
C30: INSTITUTIONAL
C31: Availablility Fees for Vacant Stands | D31: 0 | F31: 0 | G31: 0
C32: Basic Fees | D32: 0 | F32: 0 | G32: 0
C33: Stand Total | D33: =SUM(D31:D32) -> 0 | F33: =SUM(F31:F32) -> 0
C35: TOTAL NUMBER OF STANDS | D35: =SUM(D11+D17+D22+D28+D33) -> 13200 | F35: =SUM(F11+F17+F22+F28+F33) -> 13000

Sheet Data Capture Costs
BA1: 0
BA2: 0.01
C3: =Menu!D3&" - DATA CAPTURE: COSTS BY BUDGET VOTE" -> WATER - DATA CAPTURE: COSTS BY BUDGET VOTE | BA3: 0.02
BA4: 0.03
C5: SUMMARY | D5: =Menu!J4 -> SA RANDS | BA5: 0.04
C6: TOTAL VARIABLE COSTS | D6: =SUMPRODUCT($E$12:$E$33,$F$12:$F$33) -> 13970000 | BA6: 0.05
C7: TOTAL FIXED FACILITY COSTS | D7: =SUMPRODUCT($E$12:$E$33,$G$12:$G$33) -> 3480000 | BA7: 0.06
C8: TOTAL RING FENCED COSTS | D8: =SUM(D6:D7) -> 17450000 | BA8: 0.07
BA9: 0.08
C10: COSTS BY BUDGET VOTE | D10: =Menu!J4 -> SA RANDS | F10: Share of Variable Costs | G10: Share of Fixed Costs | BA10: 0.09
C11: Costs | D11: Detail | E11: ="Year"&" "&Menu!$J$5&"\"&Menu!$J$5+1 -> Year 2011\2012 | BA11: 0.1
C12: Bulk Purchases: | D12: Bulk Purchases | E12: 8500000 | F12: 0.9 | G12: =IF(F12="","",1-F12) -> 0.1 | BA12: 0.11
C13: Employee Related Costs: | D13: Basic Salaries | E13: 5500000 | F13: 0.8 | G13: =IF(F13="","",1-F13) -> 0.2 | BA13: 0.12
C14: Employee Related Costs: | D14: Social Contributions | E14: 1500000 | F14: 0.9 | G14: =IF(F14="","",1-F14) -> 0.1 | BA14: 0.13
C15: Repairs and Maintenance | D15: Repairs and Maintenance | E15: 750000 | F15: 0.2 | G15: 0.8 | BA15: 0.14
C16: Other Costs: | D16: General Costs | E16: 0 | F16: 1 | G16: 0 | BA16: 0.15
C17: Other Costs: | D17: Collection Commission | E17: 0 | F17: 1 | G17: 0 | BA17: 0.16
C18: Other Cost: | D18: Contracted Services | E18: 0 | F18: 1 | G18: 0 | BA18: 0.17
C19: Other Costs: | D19: Contributions to Provisions | E19: 0 | F19: 1 | G19: 0 | BA19: 0.18
C20: Other Costs: | D20: Debt Impairment | E20: 0 | F20: 1 | G20: 0 | BA20: 0.19
C21: Other Costs: | D21: Motor Vehicle Costs | E21: 500000 | F21: 0.5 | G21: 0.5 | BA21: 0.2
C22: Depreciation: | E22: 0 | F22: 1 | G22: 0 | BA22: 0.21
C23: External Interest: | E23: 0 | F23: 1 | G23: 0 | BA23: 0.22
C24: Reserves\Provisions for Capital Improvements: | E24: 0 | F24: 1 | G24: 0 | BA24: 0.23
C25: Other Costs: | E25: 250000 | F25: 0.5 | G25: 0.5 | BA25: 0.24
C26: Other Costs: | E26: 0 | F26: 1 | G26: 0 | BA26: 0.25
C27: Other Costs: | E27: 0 | F27: 1 | G27: 0 | BA27: 0.26
C28: Other Costs: | E28: 0 | F28: 1 | G28: 0 | BA28: 0.27
C29: Other Costs: | E29: 0 | F29: 1 | G29: 0 | BA29: 0.28
C30: Other Costs: | E30: 0 | F30: 1 | G30: 0 | BA30: 0.29
C31: Overhead Costs Re-Allocated (+) | E31: 450000 | F31: 0.1 | G31: 0.9 | BA31: 0.3
C32: Overhead Costs Re-Allocated (-) | D32: Less | E32: 0 | F32: 1 | G32: 0 | BA32: 0.31
C33: Less Sundry Income | D33: Less Sundry Income Generated from Indirect Services | E33: 0 | F33: 1 | G33: 0 | BA33: 0.32
C34: TOTAL COSTS BY BUDGET VOTE | E34: =SUM(E12:E31)-E32-E33 -> 17450000 | BA34: 0.33
BA35: 0.34
C36: TOTAL RING FENCED COSTS | E36: =E34 -> 17450000 | BA36: 0.35
BA37: 0.36
BA38: 0.37
BA39: 0.38
BA40: 0.39
BA41: 0.4
BA42: 0.41
BA43: 0.42
BA44: 0.43
BA45: 0.44
BA46: 0.45
BA47: 0.46
BA48: 0.47
BA49: 0.48
BA50: 0.49
BA51: 0.5
BA52: 0.51
BA53: 0.52
BA54: 0.53
BA55: 0.54
BA56: 0.55
BA57: 0.56
BA58: 0.57
BA59: 0.58
BA60: 0.59
BA61: 0.6
BA62: 0.61
BA63: 0.62
BA64: 0.63
BA65: 0.64
BA66: 0.65
BA67: 0.66
BA68: 0.67
BA69: 0.68
BA70: 0.69
BA71: 0.7
BA72: 0.71
BA73: 0.72
BA74: 0.73
BA75: 0.74
BA76: 0.75
BA77: 0.76
BA78: 0.77
BA79: 0.78
BA80: 0.79
BA81: 0.8
BA82: 0.81
BA83: 0.82
BA84: 0.83
BA85: 0.84
BA86: 0.85
BA87: 0.86
BA88: 0.87
BA89: 0.88
BA90: 0.89
BA91: 0.9
BA92: 0.91
BA93: 0.92
BA94: 0.93
BA95: 0.94
BA96: 0.95
BA97: 0.96
BA98: 0.97
BA99: 0.98
BA100: 0.99
BA101: 1

Sheet Primary Baseline Tariff
C3: PRIMARY BASELINE TARIFF
C5: Below is a basic tariff calculated per baseline unit. This is a tariff that is the same for all consumers. Note: Water has a fixed and a variable component.
C7: DETAIL | D7: AMT
C8: ='Data Capture Costs'!C6 -> TOTAL VARIABLE COSTS | D8: ='Data Capture Costs'!$D$6 -> 13970000
C9: ='Data Capture Demand'!C55 -> TOTAL KL WATER DEMAND | D9: ='Data Capture Demand'!E55 -> 2122000
C10: Tariff per KL Water Consumption | D10: =IF(D8=0,0,D8/D9) -> 6.583411876
C11: ='Data Capture Costs'!C7 -> TOTAL FIXED FACILITY COSTS | D11: ='Data Capture Costs'!$D$7 -> 3480000
C12: ='Data Capture Users'!C35 -> TOTAL NUMBER OF STANDS | D12: ='Data Capture Users'!D35 -> 13200
C13: Fixed Tariff for Water Supply | D13: =IF(D11=0,0,D11/D12) -> 263.6363636

Sheet Adj Primary Baseline Tariff
C3: ADJUSTED PRIMARY BASELINE TARIFF | H3: COST TO FREE BASIC WATER | J3: =Menu!$J$4 -> SA RANDS
H4: ='Data Capture Demand'!C8 -> CONSUMER | I4: ='Data Capture Demand'!E8 -> KL WATER DEMAND | J4: REVENUE | K4: FREE BASIC WATER COST
C5: Adjusted Primary Baseline Tariff after costing Free Basic Water. | H5: =C9 -> OTHER CONSUMPTION | I5: =SUM('Data Capture Demand'!$E$20+'Data Capture Demand'!$E$32+'Data Capture Demand'!$E$40+'Data Capture Demand'!$E$53) -> 1632000 | J5: ='Data Capture Costs'!D6 -> 13970000 | K5: 0
H6: ='Data Capture Demand'!C10 -> Domestic (Free Basic Water) Consumption | I6: ='Data Capture Demand'!E11 -> 490000 | J6: 0 | K6: =I6*'Primary Baseline Tariff'!D10 -> 3225871.819
C7: DETAIL | D7: AMT | H7: ='Data Capture Demand'!C55 -> TOTAL KL WATER DEMAND | I7: ='Data Capture Demand'!E55 -> 2122000 | J7: =SUM(J5:J6) -> 13970000 | K7: =SUM(K5:K6) -> 3225871.819
C8: ='Primary Baseline Tariff'!C8 -> TOTAL VARIABLE COSTS | D8: ='Data Capture Costs'!$D$6 -> 13970000
C9: OTHER CONSUMPTION | D9: =SUM('Data Capture Demand'!$E$20+'Data Capture Demand'!$E$32+'Data Capture Demand'!$E$40+'Data Capture Demand'!$E$53) -> 1632000 | H9: FIXED AVAILABILITY FEES | J9: =Menu!$J$4 -> SA RANDS
C10: ='Primary Baseline Tariff'!C10 -> Tariff per KL Water Consumption | D10: =IF(D8=0,0,D8/D9) -> 8.56004902 | H10: ='Data Capture Users'!C8 -> CONSUMER | I10: ='Data Capture Users'!D8 -> NO OF STANDS | J10: REVENUE | K10: FREE BASIC WATER COST
C11: ='Primary Baseline Tariff'!C11 -> TOTAL FIXED FACILITY COSTS | D11: ='Data Capture Costs'!$D$7 -> 3480000 | H11: =C12 -> OTHER CONSUMERS | I11: ='Data Capture Users'!$D$17+'Data Capture Users'!$D$22+'Data Capture Users'!$D$28+'Data Capture Users'!$D$33 -> 11000 | J11: =I11*D13 -> 3480000 | K11: 0
C12: OTHER CONSUMERS | D12: ='Data Capture Users'!$D$17+'Data Capture Users'!$D$22+'Data Capture Users'!$D$28+'Data Capture Users'!$D$33 -> 11000 | H12: ='Data Capture Users'!C10 -> Domestic (Free Basic Water) Consumers | I12: ='Data Capture Users'!D11 -> 2200 | J12: 0 | K12: =I12*'Primary Baseline Tariff'!D13 -> 580000
C13: ='Primary Baseline Tariff'!C13 -> Fixed Tariff for Water Supply | D13: =IF(D11=0,0,D11/D12) -> 316.3636364 | H13: ='Data Capture Users'!C35 -> TOTAL NUMBER OF STANDS | I13: ='Data Capture Users'!D35 -> 13200 | J13: =SUM(J11:J12) -> 3480000 | K13: =SUM(K11:K12) -> 580000

Sheet Strategic Decisions
BD1: Yes
C3: STRATEGIC DECISIONS
BD4: No
C5: FINANCIAL DECISIONS | D5: AMOUNT | E5: % | F5: % AMT | J5: REVISED PRIMARY BASELINE TARIFF
B6: 1 | C6: Do you wish to achieve a Surplus on this service? | D6: YES
D7: NO
C8: Enter Size of the Surplus | D8: 0 | E8: 10 | F8: =E8%*'Data Capture Costs'!D6 -> 1397000 | J8: ='Revised Primary Baseline Tariff'!D10 -> 9.416053922
B10: 2 | C10: Are you willing to make a Deficit on this service? | D10: YES
D11: NO
C12: Enter Size of the Deficit | D12: 0 | E12: 0 | F12: =-(E12%)*'Data Capture Costs'!D6 -> 0
J13: CHANGES TO VARIABLE COSTS
C14: AFFORDABILITY DECISIONS | D14: AMOUNT | E14: % | F14: % AMT
C15: Most of these decisions are contained in the municipality's Tariff policy and therefore already form part of the information used to populate the model. However the decisions can at this point be re-visited and altered as necessary before the tariff is finalised.
B16: 3 | C16: Do you plan to subsidise the delivery of this service (excluding Free Basic Services)? | D16: YES | I16: 1 | J16: =D8+F8 -> 1397000
D17: NO | I17: 2 | J17: =D12+F12 -> 0
C18: Enter Size of Subsidy | D18: 0 | E18: 0 | F18: =E18%*'Data Capture Costs'!D6 -> 0 | I18: 3 | J18: =D18+F18 -> 0
B20: 4 | C20: Do you wish to limit the Size of the Tariff levied on certain type of consumers? | D20: CHANGE VARIABLE TARIFF | J20: =J16-J17+J18 -> 1397000
D21: CHANGE FIXED TARIFF
B23: 5 | C23: Do you wish to Escalate the Tariff levied on certain type of consumers? | D23: CHANGE VARIABLE TARIFF
D24: CHANGE FIXED TARIFF

Sheet Revised Primary Baseline Tariff
C3: REVISED PRIMARY BASELINE TARIFF
C5: After Strategic Decisions this is the revised tariff.
C7: DETAIL | D7: AMT
C8: ='Adj Primary Baseline Tariff'!C8 -> TOTAL VARIABLE COSTS | D8: ='Adj Primary Baseline Tariff'!D8+'Strategic Decisions'!J20 -> 15367000
C9: ='Adj Primary Baseline Tariff'!C9 -> OTHER CONSUMPTION | D9: ='Adj Primary Baseline Tariff'!$D$9 -> 1632000
C10: ='Primary Baseline Tariff'!C10 -> Tariff per KL Water Consumption | D10: =IF(D$8=0,0,D8/D$9) -> 9.416053922
C11: ='Adj Primary Baseline Tariff'!C11 -> TOTAL FIXED FACILITY COSTS | D11: ='Adj Primary Baseline Tariff'!D11 -> 3480000
C12: ='Adj Primary Baseline Tariff'!C12 -> OTHER CONSUMERS | D12: ='Adj Primary Baseline Tariff'!D12 -> 11000
C13: ='Primary Baseline Tariff'!C13 -> Fixed Tariff for Water Supply | D13: =IF(D11=0,0,D11/D12) -> 316.3636364

Sheet Test Afford of Variable Tariff
C3: CURRENT & REVISED TARIFF COMPARISON: VARIABLE CONSUMPTION
C5: ='Data Capture Demand'!C8 -> CONSUMER | D5: ='Data Capture Demand'!D8 -> CONSUMPTION LEVEL | E5: ='Data Capture Demand'!E8&" ("&Menu!J4&")" -> KL WATER DEMAND (SA RANDS) | F5: CURRENT ACTUAL | H5: REVISED TARIFF | K5: AFFORDABILITY ADJUSTMENT TO REVISED PRIMARY BASELINE | O5: Current Actual - Revised | P5: PROFIT\LOSS
F6: TARIFF | G6: REVENUE | H6: TARIFF | I6: REVENUE | K6: % CHANGE | L6: TARIFF | M6: REVENUE | O6: TARIFF | P6: REVENUE
C7: =IF('Data Capture Demand'!C10="","",'Data Capture Demand'!C10) -> Domestic (Free Basic Water) Consumption | D7: =IF('Data Capture Demand'!D10="","",'Data Capture Demand'!D10) -> Consumption 0KL to 6KL | E7: ='Data Capture Demand'!E10 -> 490000 | F7: 0 | G7: =SUM('Data Capture Demand'!G10*F7) -> 0 | H7: 0 | I7: =SUM(E7*H7) -> 0 | J7: 0 | K7: 0 | L7: =SUM(H7*K7%)+H7 -> 0 | M7: =E7*L7 -> 0 | O7: =L7-F7 -> 0 | P7: =M7-G7 -> 0
C8: ='Data Capture Demand'!C9&" TOTAL" -> DOMESTIC (LOW INCOME) TOTAL | E8: =SUM(E7) -> 490000 | G8: =SUM(G7) -> 0 | I8: =SUM(I7) -> 0 | K8: 0 | M8: =SUM(M7) -> 0 | P8: =SUM(P7) -> 0
C9: =IF('Data Capture Demand'!C14="","",'Data Capture Demand'!C14) -> Consumption 7KL to 15KL | D9: =IF('Data Capture Demand'!D14="","",'Data Capture Demand'!D14) -> Consumption 7KL to 15KL | E9: ='Data Capture Demand'!E14 -> 450000 | F9: ='Data Capture Demand'!H14 -> 5 | G9: =SUM('Data Capture Demand'!G14*F9) -> 2000000 | H9: ='Revised Primary Baseline Tariff'!$D$10 -> 9.416053922 | I9: =SUM(E9*H9) -> 4237224.265 | J9: 0 | K9: 0 | L9: =SUM(H9*K9%)+H9 -> 9.416053922 | M9: =E9*L9 -> 4237224.265 | O9: =L9-F9 -> 4.416053922 | P9: =M9-G9 -> 2237224.265
C10: =IF('Data Capture Demand'!C15="","",'Data Capture Demand'!C15) -> Consumption 16KL to 30KL | D10: =IF('Data Capture Demand'!D15="","",'Data Capture Demand'!D15) -> Consumption 16KL to 30KL | E10: ='Data Capture Demand'!E15 -> 350000 | F10: ='Data Capture Demand'!H15 -> 8 | G10: =SUM('Data Capture Demand'!G15*F10) -> 2800000 | H10: ='Revised Primary Baseline Tariff'!$D$10 -> 9.416053922 | I10: 3295618.873 | J10: 0 | K10: 0 | L10: 9.416053922 | M10: 3295618.873 | O10: =L10-F10 -> 1.416053922 | P10: =M10-G10 -> 495618.8725
C11: =IF('Data Capture Demand'!C16="","",'Data Capture Demand'!C16) -> Domestic Consumption Type 3 | D11: =IF('Data Capture Demand'!D16="","",'Data Capture Demand'!D16) -> Consumption 31KL to 40KL | E11: ='Data Capture Demand'!E16 -> 175000 | F11: ='Data Capture Demand'!H16 -> 15 | G11: =SUM('Data Capture Demand'!G16*F11) -> 3000000 | H11: ='Revised Primary Baseline Tariff'!$D$10 -> 9.416053922 | I11: 1647809.436 | J11: 0 | K11: 0 | L11: 9.416053922 | M11: 1647809.436 | O11: =L11-F11 -> -5.583946078 | P11: -1352190.564
C12: =IF('Data Capture Demand'!C17="","",'Data Capture Demand'!C17) -> Domestic Consumption Type 4 | D12: =IF('Data Capture Demand'!D17="","",'Data Capture Demand'!D17) -> Consumption above 40KL | E12: ='Data Capture Demand'!E17 -> 0 | F12: ='Data Capture Demand'!H17 -> 0 | G12: =SUM('Data Capture Demand'!G17*F12) -> 0 | H12: ='Revised Primary Baseline Tariff'!$D$10 -> 9.416053922 | I12: 0 | J12: 0 | K12: 0 | L12: 9.416053922 | M12: 0 | O12: =L12-F12 -> 9.416053922 | P12: 0
C13: =IF('Data Capture Demand'!C18="","",'Data Capture Demand'!C18) -> Domestic Consumption Type 5 | D13: =IF('Data Capture Demand'!D18="","",'Data Capture Demand'!D18) ->  | E13: ='Data Capture Demand'!E18 -> 0 | F13: ='Data Capture Demand'!H18 -> 0 | G13: =SUM('Data Capture Demand'!G18*F13) -> 0 | H13: ='Revised Primary Baseline Tariff'!$D$10 -> 9.416053922 | I13: 0 | J13: 0 | K13: 0 | L13: 9.416053922 | M13: 0 | O13: =L13-F13 -> 9.416053922 | P13: 0
C14: =IF('Data Capture Demand'!C19="","",'Data Capture Demand'!C19) -> Domestic Consumption Type 6 | D14: =IF('Data Capture Demand'!D19="","",'Data Capture Demand'!D19) ->  | E14: ='Data Capture Demand'!E19 -> 0 | F14: ='Data Capture Demand'!H19 -> 0 | G14: =SUM('Data Capture Demand'!G19*F14) -> 0 | H14: ='Revised Primary Baseline Tariff'!$D$10 -> 9.416053922 | I14: 0 | J14: 0 | K14: 0 | L14: 9.416053922 | M14: 0 | O14: =L14-F14 -> 9.416053922 | P14: 0
C15: ='Data Capture Demand'!C13&" TOTAL" -> DOMESTIC TOTAL | E15: =SUM(E9:E14) -> 975000 | G15: =SUM(G9:G14) -> 7800000 | I15: =SUM(I9:I14) -> 9180652.574 | M15: =SUM(M9:M14) -> 9180652.574 | P15: =SUM(P9:P14) -> 1380652.574
C16: =IF('Data Capture Demand'!C23="","",'Data Capture Demand'!C23) -> Industrial Consumption Type 1 | D16: =IF('Data Capture Demand'!D23="","",'Data Capture Demand'!D23) -> Consumption 0KL to 1,000KL | E16: ='Data Capture Demand'!E23 -> 250000 | F16: ='Data Capture Demand'!H23 -> 7 | G16: =SUM('Data Capture Demand'!G23*F16) -> 1750000 | H16: ='Revised Primary Baseline Tariff'!$D$10 -> 9.416053922 | I16: =SUM(E16*H16) -> 2354013.48 | J16: 0 | K16: 0 | L16: =SUM(H16*K16%)+H16 -> 9.416053922 | M16: =E16*L16 -> 2354013.48 | O16: =L16-F16 -> 2.416053922 | P16: =M16-G16 -> 604013.4804
C17: =IF('Data Capture Demand'!C24="","",'Data Capture Demand'!C24) -> Industrial Consumption Type 2 | D17: =IF('Data Capture Demand'!D24="","",'Data Capture Demand'!D24) -> Consumption 1,001KL to 5,000KL | E17: ='Data Capture Demand'!E24 -> 120000 | F17: ='Data Capture Demand'!H24 -> 10 | G17: =SUM('Data Capture Demand'!G24*F17) -> 1500000 | H17: ='Revised Primary Baseline Tariff'!$D$10 -> 9.416053922 | I17: 1129926.471 | J17: 0 | K17: 0 | L17: 9.416053922 | M17: 1129926.471 | O17: -0.5839460784 | P17: -370073.5294
C18: =IF('Data Capture Demand'!C25="","",'Data Capture Demand'!C25) -> Industrial Consumption Type 3 | D18: =IF('Data Capture Demand'!D25="","",'Data Capture Demand'!D25) -> Consumption 5,001KL to 100,000KL | E18: ='Data Capture Demand'!E25 -> 0 | F18: ='Data Capture Demand'!H25 -> 0 | G18: =SUM('Data Capture Demand'!G25*F18) -> 0 | H18: ='Revised Primary Baseline Tariff'!$D$10 -> 9.416053922 | I18: 0 | J18: 0 | K18: 0 | L18: 9.416053922 | M18: 0 | O18: 9.416053922 | P18: 0
C19: =IF('Data Capture Demand'!C26="","",'Data Capture Demand'!C26) -> Industrial Consumption Type 4 | D19: =IF('Data Capture Demand'!D26="","",'Data Capture Demand'!D26) -> Consumption 100,001KL to 150,000KL | E19: ='Data Capture Demand'!E26 -> 0 | F19: ='Data Capture Demand'!H26 -> 0 | G19: =SUM('Data Capture Demand'!G26*F19) -> 0 | H19: ='Revised Primary Baseline Tariff'!$D$10 -> 9.416053922 | I19: 0 | J19: 0 | K19: 0 | L19: 9.416053922 | M19: 0 | O19: 9.416053922 | P19: 0
C20: =IF('Data Capture Demand'!C27="","",'Data Capture Demand'!C27) -> Industrial Consumption Type 5 | D20: =IF('Data Capture Demand'!D27="","",'Data Capture Demand'!D27) -> Consumption 150,001KL to 300,000KL | E20: ='Data Capture Demand'!E27 -> 0 | F20: ='Data Capture Demand'!H27 -> 0 | G20: =SUM('Data Capture Demand'!G27*F20) -> 0 | H20: ='Revised Primary Baseline Tariff'!$D$10 -> 9.416053922 | I20: 0 | J20: 0 | K20: 0 | L20: 9.416053922 | M20: 0 | O20: 9.416053922 | P20: 0
C21: =IF('Data Capture Demand'!C28="","",'Data Capture Demand'!C28) -> Industrial Consumption Type 6 | D21: =IF('Data Capture Demand'!D28="","",'Data Capture Demand'!D28) -> Consumption 300,001KL to 600,000KL | E21: ='Data Capture Demand'!E28 -> 0 | F21: ='Data Capture Demand'!H28 -> 0 | G21: =SUM('Data Capture Demand'!G28*F21) -> 0 | H21: ='Revised Primary Baseline Tariff'!$D$10 -> 9.416053922 | I21: 0 | J21: 0 | K21: 0 | L21: 9.416053922 | M21: 0 | O21: 9.416053922 | P21: 0
C22: =IF('Data Capture Demand'!C29="","",'Data Capture Demand'!C29) -> Industrial Consumption Type 7 | D22: =IF('Data Capture Demand'!D29="","",'Data Capture Demand'!D29) -> Consumption above 600,000KL | E22: ='Data Capture Demand'!E29 -> 0 | F22: ='Data Capture Demand'!H29 -> 0 | G22: =SUM('Data Capture Demand'!G29*F22) -> 0 | H22: ='Revised Primary Baseline Tariff'!$D$10 -> 9.416053922 | I22: 0 | J22: 0 | K22: 0 | L22: 9.416053922 | M22: 0 | O22: 9.416053922 | P22: 0
C23: =IF('Data Capture Demand'!C30="","",'Data Capture Demand'!C30) -> Industrial Consumption Type 8 | D23: =IF('Data Capture Demand'!D30="","",'Data Capture Demand'!D30) ->  | E23: ='Data Capture Demand'!E30 -> 0 | F23: ='Data Capture Demand'!H30 -> 0 | G23: =SUM('Data Capture Demand'!G30*F23) -> 0 | H23: ='Revised Primary Baseline Tariff'!$D$10 -> 9.416053922 | I23: 0 | J23: 0 | K23: 0 | L23: 9.416053922 | M23: 0 | O23: 9.416053922 | P23: 0
C24: =IF('Data Capture Demand'!C31="","",'Data Capture Demand'!C31) -> Industrial Consumption Type 9 | D24: =IF('Data Capture Demand'!D31="","",'Data Capture Demand'!D31) ->  | E24: ='Data Capture Demand'!E31 -> 0 | F24: ='Data Capture Demand'!H31 -> 0 | G24: =SUM('Data Capture Demand'!G31*F24) -> 0 | H24: ='Revised Primary Baseline Tariff'!$D$10 -> 9.416053922 | I24: 0 | J24: 0 | K24: 0 | L24: 9.416053922 | M24: 0 | O24: 9.416053922 | P24: 0
C25: ='Data Capture Demand'!C22&" TOTAL" -> INDUSTRIAL TOTAL | E25: =SUM(E16:E24) -> 370000 | G25: =SUM(G16:G24) -> 3250000 | I25: =SUM(I16:I24) -> 3483939.951 | M25: =SUM(M16:M24) -> 3483939.951 | P25: =SUM(P16:P24) -> 233939.951
C26: =IF('Data Capture Demand'!C35="","",'Data Capture Demand'!C35) -> Commercial Consumption Type 1 | D26: =IF('Data Capture Demand'!D35="","",'Data Capture Demand'!D35) -> Consumption 0KL to 30KL | E26: ='Data Capture Demand'!E35 -> 150000 | F26: ='Data Capture Demand'!H35 -> 8 | G26: =SUM('Data Capture Demand'!G35*F26) -> 1200000 | H26: ='Revised Primary Baseline Tariff'!$D$10 -> 9.416053922 | I26: =SUM(E26*H26) -> 1412408.088 | J26: 0 | K26: 0 | L26: =SUM(H26*K26%)+H26 -> 9.416053922 | M26: =E26*L26 -> 1412408.088 | O26: =L26-F26 -> 1.416053922 | P26: =M26-G26 -> 212408.0882
C27: =IF('Data Capture Demand'!C36="","",'Data Capture Demand'!C36) -> Commercial Consumption Type 2 | D27: =IF('Data Capture Demand'!D36="","",'Data Capture Demand'!D36) -> Consumption 31KL to 40KL | E27: ='Data Capture Demand'!E36 -> 120000 | F27: ='Data Capture Demand'!H36 -> 15 | G27: =SUM('Data Capture Demand'!G36*F27) -> 1875000 | H27: ='Revised Primary Baseline Tariff'!$D$10 -> 9.416053922 | I27: =SUM(E27*H27) -> 1129926.471 | J27: 0 | K27: 0 | L27: =SUM(H27*K27%)+H27 -> 9.416053922 | M27: =E27*L27 -> 1129926.471 | O27: =L27-F27 -> -5.583946078 | P27: -745073.5294
C28: =IF('Data Capture Demand'!C37="","",'Data Capture Demand'!C37) -> Commercial Consumption Type 3 | D28: =IF('Data Capture Demand'!D37="","",'Data Capture Demand'!D37) -> Consumption above 40KL | E28: ='Data Capture Demand'!E37 -> 0 | F28: ='Data Capture Demand'!H37 -> 0 | G28: =SUM('Data Capture Demand'!G37*F28) -> 0 | H28: ='Revised Primary Baseline Tariff'!$D$10 -> 9.416053922 | I28: =SUM(E28*H28) -> 0 | J28: 0 | K28: 0 | L28: =SUM(H28*K28%)+H28 -> 9.416053922 | M28: =E28*L28 -> 0 | O28: =L28-F28 -> 9.416053922 | P28: 0
C29: =IF('Data Capture Demand'!C38="","",'Data Capture Demand'!C38) -> Commercial Consumption Type 4 | D29: =IF('Data Capture Demand'!D38="","",'Data Capture Demand'!D38) ->  | E29: ='Data Capture Demand'!E38 -> 0 | F29: ='Data Capture Demand'!H38 -> 0 | G29: =SUM('Data Capture Demand'!G38*F29) -> 0 | H29: ='Revised Primary Baseline Tariff'!$D$10 -> 9.416053922 | I29: =SUM(E29*H29) -> 0 | J29: 0 | K29: 0 | L29: =SUM(H29*K29%)+H29 -> 9.416053922 | M29: =E29*L29 -> 0 | O29: =L29-F29 -> 9.416053922 | P29: 0
C30: =IF('Data Capture Demand'!C39="","",'Data Capture Demand'!C39) -> Commercial Consumption Type 5 | D30: =IF('Data Capture Demand'!D39="","",'Data Capture Demand'!D39) ->  | E30: ='Data Capture Demand'!E39 -> 0 | F30: ='Data Capture Demand'!H39 -> 0 | G30: =SUM('Data Capture Demand'!G39*F30) -> 0 | H30: ='Revised Primary Baseline Tariff'!$D$10 -> 9.416053922 | I30: =SUM(E30*H30) -> 0 | J30: 0 | K30: 0 | L30: =SUM(H30*K30%)+H30 -> 9.416053922 | M30: =E30*L30 -> 0 | O30: =L30-F30 -> 9.416053922 | P30: 0
C31: ='Data Capture Demand'!C34&" TOTAL" -> COMMERCIAL TOTAL | E31: =SUM(E26:E30) -> 270000 | G31: =SUM(G26:G30) -> 3075000 | I31: =SUM(I26:I30) -> 2542334.559 | M31: =SUM(M26:M30) -> 2542334.559 | P31: =SUM(P26:P30) -> -532665.4412
C32: =IF('Data Capture Demand'!C43="","",'Data Capture Demand'!C43) -> Municipal Purposes | D32: =IF('Data Capture Demand'!D43="","",'Data Capture Demand'!D43) ->  | E32: ='Data Capture Demand'!E43 -> 17000 | F32: ='Data Capture Demand'!H43 -> 5 | G32: =SUM('Data Capture Demand'!G43*F32) -> 80000 | H32: ='Revised Primary Baseline Tariff'!$D$10 -> 9.416053922 | I32: =SUM(E32*H32) -> 160072.9167 | J32: 0 | K32: 0 | L32: =SUM(H32*K32%)+H32 -> 9.416053922 | M32: =E32*L32 -> 160072.9167 | O32: =L32-F32 -> 4.416053922 | P32: =M32-G32 -> 80072.91667
C33: =IF('Data Capture Demand'!C44="","",'Data Capture Demand'!C44) -> Sports Clubs and Schools Type 1 | D33: =IF('Data Capture Demand'!D44="","",'Data Capture Demand'!D44) -> Consumption 1KL to 500KL | E33: ='Data Capture Demand'!E44 -> 0 | F33: ='Data Capture Demand'!H44 -> 0 | G33: =SUM('Data Capture Demand'!G44*F33) -> 0 | H33: ='Revised Primary Baseline Tariff'!$D$10 -> 9.416053922 | I33: 0 | J33: 0 | K33: 0 | L33: =SUM(H33*K33%)+H33 -> 9.416053922 | M33: 0 | O33: 9.416053922 | P33: 0
C34: =IF('Data Capture Demand'!C45="","",'Data Capture Demand'!C45) -> Sports Clubs and Schools Type 2 | D34: =IF('Data Capture Demand'!D45="","",'Data Capture Demand'!D45) -> Consumption above 501KL | E34: ='Data Capture Demand'!E45 -> 0 | F34: ='Data Capture Demand'!H45 -> 0 | G34: =SUM('Data Capture Demand'!G45*F34) -> 0 | H34: ='Revised Primary Baseline Tariff'!$D$10 -> 9.416053922 | I34: 0 | J34: 0 | K34: 0 | L34: =SUM(H34*K34%)+H34 -> 9.416053922 | M34: 0 | O34: 9.416053922 | P34: 0
C35: =IF('Data Capture Demand'!C46="","",'Data Capture Demand'!C46) -> Other | D35: =IF('Data Capture Demand'!D46="","",'Data Capture Demand'!D46) ->  | E35: ='Data Capture Demand'!E46 -> 0 | F35: ='Data Capture Demand'!H46 -> 0 | G35: =SUM('Data Capture Demand'!G46*F35) -> 0 | H35: ='Revised Primary Baseline Tariff'!$D$10 -> 9.416053922 | I35: 0 | J35: 0 | K35: 0 | L35: =SUM(H35*K35%)+H35 -> 9.416053922 | M35: 0 | O35: 9.416053922 | P35: 0
C36: =IF('Data Capture Demand'!C47="","",'Data Capture Demand'!C47) -> Other | D36: =IF('Data Capture Demand'!D47="","",'Data Capture Demand'!D47) ->  | E36: ='Data Capture Demand'!E47 -> 0 | F36: ='Data Capture Demand'!H47 -> 0 | G36: =SUM('Data Capture Demand'!G47*F36) -> 0 | H36: ='Revised Primary Baseline Tariff'!$D$10 -> 9.416053922 | I36: 0 | K36: 0 | L36: =SUM(H36*K36%)+H36 -> 9.416053922 | M36: 0 | O36: 9.416053922 | P36: 0
C37: =IF('Data Capture Demand'!C48="","",'Data Capture Demand'!C48) -> Other | D37: =IF('Data Capture Demand'!D48="","",'Data Capture Demand'!D48) ->  | E37: ='Data Capture Demand'!E48 -> 0 | F37: ='Data Capture Demand'!H48 -> 0 | G37: =SUM('Data Capture Demand'!G48*F37) -> 0 | H37: ='Revised Primary Baseline Tariff'!$D$10 -> 9.416053922 | I37: 0 | J37: 0 | K37: 0 | L37: =SUM(H37*K37%)+H37 -> 9.416053922 | M37: 0 | O37: 9.416053922 | P37: 0
C38: =IF('Data Capture Demand'!C49="","",'Data Capture Demand'!C49) -> Other | D38: =IF('Data Capture Demand'!D49="","",'Data Capture Demand'!D49) ->  | E38: ='Data Capture Demand'!E49 -> 0 | F38: ='Data Capture Demand'!H49 -> 0 | G38: =SUM('Data Capture Demand'!G49*F38) -> 0 | H38: ='Revised Primary Baseline Tariff'!$D$10 -> 9.416053922 | I38: 0 | J38: 0 | K38: 0 | L38: 9.416053922 | M38: 0 | O38: 9.416053922 | P38: 0
C39: =IF('Data Capture Demand'!C50="","",'Data Capture Demand'!C50) -> Other | D39: =IF('Data Capture Demand'!D50="","",'Data Capture Demand'!D50) ->  | E39: ='Data Capture Demand'!E50 -> 0 | F39: ='Data Capture Demand'!H50 -> 0 | G39: =SUM('Data Capture Demand'!G50*F39) -> 0 | H39: ='Revised Primary Baseline Tariff'!$D$10 -> 9.416053922 | I39: 0 | J39: 0 | K39: 0 | L39: 9.416053922 | M39: 0 | O39: 9.416053922 | P39: 0
C40: =IF('Data Capture Demand'!C51="","",'Data Capture Demand'!C51) -> Other | D40: =IF('Data Capture Demand'!D51="","",'Data Capture Demand'!D51) ->  | E40: ='Data Capture Demand'!E51 -> 0 | F40: ='Data Capture Demand'!H51 -> 0 | G40: =SUM('Data Capture Demand'!G51*F40) -> 0 | H40: ='Revised Primary Baseline Tariff'!$D$10 -> 9.416053922 | I40: 0 | J40: 0 | K40: 0 | L40: 9.416053922 | M40: 0 | O40: 9.416053922 | P40: 0
C41: =IF('Data Capture Demand'!C52="","",'Data Capture Demand'!C52) -> Other | D41: =IF('Data Capture Demand'!D52="","",'Data Capture Demand'!D52) ->  | E41: ='Data Capture Demand'!E52 -> 0 | F41: ='Data Capture Demand'!H52 -> 0 | G41: =SUM('Data Capture Demand'!G52*F41) -> 0 | H41: ='Revised Primary Baseline Tariff'!$D$10 -> 9.416053922 | I41: 0 | J41: 0 | K41: 0 | L41: 9.416053922 | M41: 0 | O41: 9.416053922 | P41: 0
C42: ='Data Capture Demand'!C42&" TOTAL" -> INSTITUTIONAL TOTAL | E42: =SUM(E32:E41) -> 17000 | G42: =SUM(G32:G41) -> 80000 | I42: =SUM(I32:I41) -> 160072.9167 | M42: =SUM(M32:M41) -> 160072.9167 | P42: =SUM(P32:P41) -> 80072.91667
C44: TOTAL VARIABLE CONSUMPTION | E44: =SUM(E42+E31+E25+E15) -> 1632000 | G44: =SUM(G42+G31+G25+G15) -> 14205000 | I44: =SUM(I42+I31+I25+I15) -> 15367000 | M44: =SUM(M42+M31+M25+M15) -> 15367000 | P44: =SUM(P42+P31+P25+P15) -> 1162000
C46: FULL VARIABLE COST | D46: =SUM('Data Capture Costs'!D6) -> 13970000 | E46: =SUM('Data Capture Costs'!D6) -> 13970000 | F46: CURRENT ACTUAL (PER YEAR) | J46: 0 | L46: ANTICIPATED (PER YEAR)
F47: Current Revenue | G47: =G44 -> 14205000 | L47: Revised Revenue | M47: =M44 -> 15367000
F48: PROFIT\LOSS | G48: =G47-E46 -> 235000 | J48: 0 | L48: PROFIT\LOSS | M48: =M47-E46 -> 1397000
J49: 0
J50: 0
J52: 0
J53: 0
J55: 0
J56: 0
J57: 0
J59: 0
J60: 0

Sheet Test Afford of Fixed Tariff
C3: CURRENT & REVISED TARIFF COMPARISON: FIXED FACILITY PER YEAR
C5: ='Data Capture Demand'!C8 -> CONSUMER | D5: ='Data Capture Demand'!D8 -> CONSUMPTION LEVEL | E5: ='Data Capture Demand'!E8&" ("&Menu!J4&")" -> KL WATER DEMAND (SA RANDS) | F5: CURRENT ACTUAL | H5: REVISED TARIFF | K5: AFFORDABILITY ADJUSTMENT TO REVISED PRIMARY BASELINE | O5: Current Actual - Revised | P5: PROFIT\LOSS
F6: TARIFF | G6: REVENUE | H6: TARIFF | I6: REVENUE | K6: % CHANGE | L6: TARIFF | M6: REVENUE | O6: TARIFF | P6: REVENUE
C7: =IF('Data Capture Users'!C10="","",'Data Capture Users'!C10) -> Domestic (Free Basic Water) Consumers | E7: ='Data Capture Users'!D10 -> 2200 | F7: 0 | G7: ='Data Capture Users'!F10*F7 -> 0 | H7: 0 | I7: =SUM(E7*H7) -> 0 | K7: 0 | L7: =SUM(H7*K7%)+H7 -> 0 | M7: =E7*L7 -> 0 | O7: =L7-F7 -> 0 | P7: =M7-G7 -> 0
C8: ='Data Capture Users'!C9&" TOTAL" -> DOMESTIC (LOW INCOME) TOTAL | E8: =SUM(E7) -> 2200 | G8: =SUM(G7) -> 0 | I8: =SUM(I7) -> 0 | M8: =SUM(M7) -> 0 | P8: =SUM(P7) -> 0
C9: =IF('Data Capture Users'!C14="","",'Data Capture Users'!C14) -> Availablility Fees for Vacant Stands | E9: ='Data Capture Users'!D14 -> 900 | F9: ='Data Capture Users'!G14 -> 480 | G9: ='Data Capture Users'!F14*F9 -> 480000 | H9: ='Revised Primary Baseline Tariff'!$D$13 -> 316.3636364 | I9: =SUM(E9*H9) -> 284727.2727 | K9: 50 | L9: =SUM(H9*K9%)+H9 -> 474.5454545 | M9: =E9*L9 -> 427090.9091 | O9: =L9-F9 -> -5.454545455 | P9: =M9-G9 -> -52909.09091
C10: =IF('Data Capture Users'!C15="","",'Data Capture Users'!C15) -> Basic Fees from Number of Domestic Consumers | E10: ='Data Capture Users'!D15 -> 10100 | F10: ='Data Capture Users'!G15 -> 480 | G10: ='Data Capture Users'!F15*F10 -> 4800000 | H10: ='Revised Primary Baseline Tariff'!$D$13 -> 316.3636364 | I10: =SUM(E10*H10) -> 3195272.727 | K10: 50 | L10: =SUM(H10*K10%)+H10 -> 474.5454545 | M10: =E10*L10 -> 4792909.091 | O10: =L10-F10 -> -5.454545455 | P10: -7090.909091
C11: =IF('Data Capture Users'!C16="","",'Data Capture Users'!C16) ->  | E11: ='Data Capture Users'!D16 -> 0 | F11: ='Data Capture Users'!G16 -> 0 | G11: ='Data Capture Users'!F16*F11 -> 0 | H11: ='Revised Primary Baseline Tariff'!$D$13 -> 316.3636364 | I11: =SUM(E11*H11) -> 0 | K11: 0 | L11: =SUM(H11*K11%)+H11 -> 316.3636364 | M11: =E11*L11 -> 0 | O11: =L11-F11 -> 316.3636364 | P11: 0
C12: ='Data Capture Users'!C13&" TOTAL" -> DOMESTIC TOTAL | E12: =SUM(E9:E11) -> 11000 | G12: =SUM(G9:G11) -> 5280000 | I12: =SUM(I9:I11) -> 3480000 | M12: =SUM(M9:M11) -> 5220000 | P12: =SUM(P9:P11) -> -60000
C13: =IF('Data Capture Users'!C20="","",'Data Capture Users'!C20) -> Availablility Fees for Vacant Stands | E13: ='Data Capture Users'!D20 -> 0 | F13: ='Data Capture Users'!G20 -> 0 | G13: ='Data Capture Users'!F20*F13 -> 0 | H13: ='Revised Primary Baseline Tariff'!$D$13 -> 316.3636364 | I13: =SUM(E13*H13) -> 0 | K13: 0 | L13: =SUM(H13*K13%)+H13 -> 316.3636364 | M13: =E13*L13 -> 0 | O13: =L13-F13 -> 316.3636364 | P13: =M13-G13 -> 0
C14: =IF('Data Capture Users'!C21="","",'Data Capture Users'!C21) -> Basic Fees | E14: ='Data Capture Users'!D21 -> 0 | F14: ='Data Capture Users'!G21 -> 0 | G14: ='Data Capture Users'!F21*F14 -> 0 | H14: ='Revised Primary Baseline Tariff'!$D$13 -> 316.3636364 | I14: =SUM(E14*H14) -> 0 | K14: 0 | L14: =SUM(H14*K14%)+H14 -> 316.3636364 | M14: =E14*L14 -> 0 | O14: =L14-F14 -> 316.3636364 | P14: 0
C15: ='Data Capture Users'!C19&" TOTAL" -> INDUSTRIAL TOTAL | E15: =SUM(E13:E14) -> 0 | G15: =SUM(G13:G14) -> 0 | I15: =SUM(I13:I14) -> 0 | M15: =SUM(M13:M14) -> 0 | P15: =SUM(P13:P14) -> 0
C16: =IF('Data Capture Users'!C25="","",'Data Capture Users'!C25) -> Availablility Fees for Vacant Stands | E16: ='Data Capture Users'!D25 -> 0 | F16: ='Data Capture Users'!G25 -> 0 | G16: ='Data Capture Users'!F25*F16 -> 0 | H16: ='Revised Primary Baseline Tariff'!$D$13 -> 316.3636364 | I16: =SUM(E16*H16) -> 0 | K16: 0 | L16: =SUM(H16*K16%)+H16 -> 316.3636364 | M16: =E16*L16 -> 0 | O16: =L16-F16 -> 316.3636364 | P16: =M16-G16 -> 0
C17: =IF('Data Capture Users'!C26="","",'Data Capture Users'!C26) -> Basic Fees | E17: ='Data Capture Users'!D26 -> 0 | F17: ='Data Capture Users'!G26 -> 0 | G17: ='Data Capture Users'!F26*F17 -> 0 | H17: ='Revised Primary Baseline Tariff'!$D$13 -> 316.3636364 | I17: =SUM(E17*H17) -> 0 | K17: 0 | L17: =SUM(H17*K17%)+H17 -> 316.3636364 | M17: =E17*L17 -> 0 | O17: =L17-F17 -> 316.3636364 | P17: 0
C18: =IF('Data Capture Users'!C27="","",'Data Capture Users'!C27) ->  | E18: ='Data Capture Users'!D27 -> 0 | F18: ='Data Capture Users'!G27 -> 0 | G18: ='Data Capture Users'!F27*F18 -> 0 | H18: ='Revised Primary Baseline Tariff'!$D$13 -> 316.3636364 | I18: =SUM(E18*H18) -> 0 | K18: 0 | L18: =SUM(H18*K18%)+H18 -> 316.3636364 | M18: =E18*L18 -> 0 | O18: =L18-F18 -> 316.3636364 | P18: 0
C19: ='Data Capture Users'!C24&" TOTAL" -> COMMERCIAL TOTAL | E19: =SUM(E16:E18) -> 0 | G19: =SUM(G16:G18) -> 0 | I19: =SUM(I16:I18) -> 0 | M19: =SUM(M16:M18) -> 0 | P19: =SUM(P16:P18) -> 0
C20: =IF('Data Capture Users'!C31="","",'Data Capture Users'!C31) -> Availablility Fees for Vacant Stands | E20: ='Data Capture Users'!D31 -> 0 | F20: ='Data Capture Users'!G31 -> 0 | G20: ='Data Capture Users'!F31*F20 -> 0 | H20: ='Revised Primary Baseline Tariff'!$D$13 -> 316.3636364 | I20: =SUM(E20*H20) -> 0 | K20: 0 | L20: =SUM(H20*K20%)+H20 -> 316.3636364 | M20: =E20*L20 -> 0 | O20: =L20-F20 -> 316.3636364 | P20: =M20-G20 -> 0
C21: =IF('Data Capture Demand'!C82="","",'Data Capture Demand'!C82) ->  | E21: ='Data Capture Users'!D32 -> 0 | F21: ='Data Capture Users'!G32 -> 0 | G21: ='Data Capture Users'!F32*F21 -> 0 | H21: ='Revised Primary Baseline Tariff'!$D$13 -> 316.3636364 | I21: =SUM(E21*H21) -> 0 | K21: 0 | L21: =SUM(H21*K21%)+H21 -> 316.3636364 | M21: =E21*L21 -> 0 | O21: =L21-F21 -> 316.3636364 | P21: 0
C22: ='Data Capture Users'!C30&" TOTAL" -> INSTITUTIONAL TOTAL | E22: =SUM(E20:E21) -> 0 | G22: =SUM(G20:G21) -> 0 | I22: =SUM(I20:I21) -> 0 | M22: =SUM(M20:M21) -> 0 | P22: =SUM(P20:P21) -> 0
C24: TOTAL FIXED CONSUMPTION | E24: =SUM(E12+E15+E19+E22) -> 11000 | G24: =SUM(G12+G15+G19+G22) -> 5280000 | I24: =SUM(I12+I15+I19+I22) -> 3480000 | M24: =SUM(M12+M15+M19+M22) -> 5220000 | P24: =SUM(P12+P15+P19+P22) -> -60000
C26: FULL FIXED COST | E26: =SUM('Data Capture Costs'!D7) -> 3480000 | F26: CURRENT ACTUAL (PER YEAR) | L26: ANTICIPATED (PER YEAR)
F27: Current Revenue | G27: =G24 -> 5280000 | L27: Revised Revenue | M27: =M24 -> 5220000
F28: PROFIT\LOSS | G28: =G27-E26 -> 1800000 | L28: PROFIT\LOSS | M28: =M27-E26 -> 1740000

Sheet Summary of Tariff Comparisons
C3: SUMMARY: VARIABLE & FIXED PROFIT AND LOSS PER YEAR
C5: ='Data Capture Demand'!C8 -> CONSUMER | D5: ='Data Capture Demand'!D8 -> CONSUMPTION LEVEL | E5: ='Data Capture Demand'!E8&" ("&Menu!J4&")" -> KL WATER DEMAND (SA RANDS) | F5: CURRENT ACTUAL | H5: REVISED TARIFF | K5: AFFORDABILITY ADJUSTMENT TO REVISED PRIMARY BASELINE | O5: Current Actual - Revised | P5: PROFIT\LOSS
F6: TARIFF | G6: REVENUE | H6: TARIFF | I6: REVENUE | K6: % CHANGE | L6: TARIFF | M6: REVENUE | O6: TARIFF | P6: REVENUE
C8: TOTAL VARIABLE CONSUMPTION | E8: ='Test Afford of Variable Tariff'!E44 -> 1632000 | G8: ='Test Afford of Variable Tariff'!G44 -> 14205000 | I8: ='Test Afford of Variable Tariff'!I44 -> 15367000 | M8: ='Test Afford of Variable Tariff'!M44 -> 15367000 | P8: ='Test Afford of Variable Tariff'!P44 -> 1162000
C11: TOTAL FIXED CONSUMPTION | E11: ='Test Afford of Fixed Tariff'!E24 -> 11000 | G11: ='Test Afford of Fixed Tariff'!G24 -> 5280000 | I11: ='Test Afford of Fixed Tariff'!I24 -> 3480000 | M11: ='Test Afford of Fixed Tariff'!M24 -> 5220000 | P11: ='Test Afford of Fixed Tariff'!P24 -> -60000
C13: FULL COST | E13: =SUM('Data Capture Costs'!D8) -> 17450000 | F13: CURRENT ACTUAL (PER YEAR) | L13: ANTICIPATED (PER YEAR)
F14: Current Revenue | G14: =G8+G11 -> 19485000 | L14: Revised Revenue | M14: =M8+M11 -> 20587000
F15: PROFIT\LOSS | G15: =G14-E13 -> 2035000 | L15: PROFIT\LOSS | M15: =M14-E13 -> 3137000
